[Event "CAMPEONATO NACIONAL ABSOLUTO DE CHILE 2019"]
[Site "Torre ENTEL, Chile"]
[Date "2019.02.21"]
[Round "2.6"]
[White "Henriquez Villagra, Cristobal"]
[Black "Torres Bravo, Cristobal"]
[Result "1-0"]
[TimeControl "90 minutos mas 30 segundos incremento por movida"]
[WhiteTitle "GM"]
[BlackTitle "FM"]
[WhiteFideId "3409350"]
[BlackFideId "3405940"]
[WhiteElo "2508"]
[BlackElo "2347"]

1. e4 {[%clk 01:30:57]} {[%emt 00:00:01]} c5 {[%clk 01:30:53]} {[%emt
00:00:08]} 2. Nc3 {[%clk 01:31:00]} {[%emt 00:00:27]} Nc6 {[%clk 01:30:38]}
{[%emt 00:00:45]} 3. Nge2 {[%clk 01:31:07]} {[%emt 00:00:23]} e6 {[%clk
01:30:45]} {[%emt 00:00:24]} 4. d4 {[%clk 01:31:23]} {[%emt 00:00:13]} cxd4
{[%clk 01:30:59]} {[%emt 00:00:16]} 5. Nxd4 {[%clk 01:31:48]} {[%emt 00:00:05]}
Qc7 {[%clk 01:31:24]} {[%emt 00:00:04]} 6. Qd3 {[%clk 01:30:29]} {[%emt
00:01:49]} a6 {[%clk 01:31:05]} {[%emt 00:00:50]} 7. Nxc6 {[%clk 01:30:48]}
{[%emt 00:00:10]} dxc6 {[%clk 01:26:46]} {[%emt 00:04:49]} 8. Qg3 {[%clk
01:30:05]} {[%emt 00:01:14]} Qxg3 {[%clk 01:13:04]} {[%emt 00:14:12]} 9. hxg3
{[%clk 01:30:10]} {[%emt 00:00:24]} Bb4 {[%clk 01:12:44]} {[%emt 00:00:50]} 10.
e5 {[%clk 01:23:24]} {[%emt 00:07:16]} Ne7 {[%clk 01:09:32]} {[%emt 00:03:41]}
11. Bd2 {[%clk 01:23:25]} {[%emt 00:00:29]} f5 {[%clk 00:52:58]} {[%emt
00:17:04]} 12. exf6 {[%clk 01:14:15]} {[%emt 00:09:40]} gxf6 {[%clk 00:53:16]}
{[%emt 00:00:13]} 13. O-O-O {[%clk 01:14:22]} {[%emt 00:00:23]} Ng6 {[%clk
00:46:55]} {[%emt 00:06:50]} 14. Bd3 {[%clk 01:09:41]} {[%emt 00:05:11]} Kf7
{[%clk 00:43:56]} {[%emt 00:03:30]} 15. Na4 {[%clk 01:03:50]} {[%emt 00:06:21]}
Be7 {[%clk 00:38:32]} {[%emt 00:05:54]} 16. Nb6 {[%clk 00:59:19]} {[%emt
00:05:01]} Rb8 {[%clk 00:37:15]} {[%emt 00:01:47]} 17. Be3 {[%clk 00:59:29]}
{[%emt 00:00:19]} f5 {[%clk 00:22:35]} {[%emt 00:15:10]} 18. Bc4 {[%clk
00:56:36]} {[%emt 00:03:23]} c5 {[%clk 00:17:24]} {[%emt 00:05:42]} 19. Rh5
{[%clk 00:54:42]} {[%emt 00:02:24]} Kf6 {[%clk 00:12:07]} {[%emt 00:05:47]} 20.
Bd2 {[%clk 00:52:17]} {[%emt 00:02:54]} e5 {[%clk 00:05:04]} {[%emt 00:07:34]}
21. Nd5+ {[%clk 00:52:34]} {[%emt 00:00:13]} Kf7 {[%clk 00:02:56]} {[%emt
00:02:38]} 22. Nxe7+ {[%clk 00:52:47]} {[%emt 00:00:17]} Kxe7 {[%clk 00:03:24]}
{[%emt 00:00:03]} 23. Rxh7+ {[%clk 00:52:58]} {[%emt 00:00:18]} Rxh7 {[%clk
00:03:29]} {[%emt 00:00:25]} 24. Bg5+ {[%clk 00:53:25]} {[%emt 00:00:03]} 1-0

[ePGN "0.1;DGT LiveChess/2.2.3"]

[Event "CAMPEONATO NACIONAL ABSOLUTO DE CHILE 2019"]
[Site "Torre ENTEL, Chile"]
[Date "????.??.??"]
[Round "3.3"]
[White "Garcia Cardenas, Pablo"]
[Black "Salinas Herrera, Pablo"]
[Result "1/2-1/2"]
[TimeControl "90 minutos mas 30 segundos incremento por movida"]
[WhiteTitle "IM"]
[BlackTitle "IM"]
[WhiteFideId "3406903"]
[BlackFideId "3407128"]
[WhiteElo "2449"]
[BlackElo "2477"]

1. d4 {[%clk 01:30:57]} {[%emt 00:00:02]} d5 {[%clk 01:22:50]} {[%emt
00:08:11]} 2. c4 {[%clk 01:31:22]} {[%emt 00:00:05]} dxc4 {[%clk 01:23:16]}
{[%emt 00:00:04]} 3. e3 {[%clk 01:31:47]} {[%emt 00:00:05]} e5 {[%clk
01:23:33]} {[%emt 00:00:13]} 4. Bxc4 {[%clk 01:28:07]} {[%emt 00:04:10]} exd4
{[%clk 01:23:58]} {[%emt 00:00:05]} 5. exd4 {[%clk 01:28:33]} {[%emt 00:00:04]}
Bd6 {[%clk 01:24:23]} {[%emt 00:00:06]} 6. Nf3 {[%clk 01:27:55]} {[%emt
00:01:08]} Nf6 {[%clk 01:24:48]} {[%emt 00:00:05]} 7. O-O {[%clk 01:27:12]}
{[%emt 00:01:12]} O-O {[%clk 01:25:13]} {[%emt 00:00:05]} 8. Bg5 {[%clk
01:26:35]} {[%emt 00:01:07]} Nc6 {[%clk 01:23:23]} {[%emt 00:02:20]} 9. Nc3
{[%clk 01:21:26]} {[%emt 00:05:39]} h6 {[%clk 01:23:24]} {[%emt 00:00:29]} 10.
Bxf6 {[%clk 01:13:24]} {[%emt 00:08:32]} Qxf6 {[%clk 01:23:49]} {[%emt
00:00:06]} 11. Ne4 {[%clk 01:12:36]} {[%emt 00:01:18]} Qf4 {[%clk 01:20:23]}
{[%emt 00:03:55]} 12. Nxd6 {[%clk 01:10:28]} {[%emt 00:02:38]} Qxd6 {[%clk
01:20:25]} {[%emt 00:00:29]} 13. d5 {[%clk 01:08:41]} {[%emt 00:02:18]} Ne7
{[%clk 01:18:33]} {[%emt 00:02:22]} 14. Rc1 {[%clk 01:03:31]} {[%emt 00:05:40]}
Rb8 {[%clk 01:04:29]} {[%emt 00:14:34]} 15. Bb3 {[%clk 00:50:11]} {[%emt
00:13:50]} Bg4 {[%clk 00:58:32]} {[%emt 00:06:26]} 16. h3 {[%clk 00:44:58]}
{[%emt 00:05:43]} Bxf3 {[%clk 00:56:30]} {[%emt 00:02:33]} 17. Qxf3 {[%clk
00:45:26]} {[%emt 00:00:02]} Rfd8 {[%clk 00:56:53]} {[%emt 00:00:07]} 18. Rfd1
{[%clk 00:42:10]} {[%emt 00:03:46]} Rd7 {[%clk 00:55:43]} {[%emt 00:01:40]} 19.
Rc3 {[%clk 00:40:02]} {[%emt 00:02:39]} Kf8 {[%clk 00:49:07]} {[%emt 00:07:05]}
20. g3 {[%clk 00:35:52]} {[%emt 00:04:39]} Ng8 {[%clk 00:49:14]} {[%emt
00:00:23]} 21. Qe3 {[%clk 00:35:02]} {[%emt 00:01:21]} Ra8 {[%clk 00:48:27]}
{[%emt 00:01:18]} 22. Qd3 {[%clk 00:25:08]} {[%emt 00:10:24]} Nf6 {[%clk
00:48:17]} {[%emt 00:00:39]} 23. Qb5 {[%clk 00:24:45]} {[%emt 00:00:53]} Qb6
{[%clk 00:43:29]} {[%emt 00:05:19]} 24. Qc5+ {[%clk 00:21:05]} {[%emt
00:04:10]} Qxc5 {[%clk 00:37:08]} {[%emt 00:06:51]} 25. Rxc5 {[%clk 00:21:33]}
{[%emt 00:00:01]} Ne4 {[%clk 00:37:34]} {[%emt 00:00:05]} 26. Rc2 {[%clk
00:20:55]} {[%emt 00:01:08]} Nd6 {[%clk 00:37:59]} {[%emt 00:00:05]} 27. Rdc1
{[%clk 00:20:01]} {[%emt 00:01:24]} Rc8 {[%clk 00:38:25]} {[%emt 00:00:05]} 28.
Kg2 {[%clk 00:19:45]} {[%emt 00:00:46]} Re7 {[%clk 00:38:49]} {[%emt 00:00:05]}
29. Ba4 {[%clk 00:18:53]} {[%emt 00:01:23]} a6 {[%clk 00:38:25]} {[%emt
00:00:53]} 1/2-1/2

[Event "CAMPEONATO NACIONAL ABSOLUTO DE CHILE 2019"]
[Site "Torre ENTEL, Chile"]
[Date "????.??.??"]
[Round "3.4"]
[White "Olivares Olivares, Claudio"]
[Black "Lopez Silva, Hugo"]
[Result "1/2-1/2"]
[TimeControl "90 minutos mas 30 segundos incremento por movida"]
[WhiteTitle "FM"]
[BlackTitle "IM"]
[WhiteFideId "3400786"]
[BlackFideId "3403874"]
[WhiteElo "2387"]
[BlackElo "2413"]

1. e4 {[%clk 01:28:03]} {[%emt 00:02:56]} e5 {[%clk 01:23:20]} {[%emt
00:07:41]} 2. Nf3 {[%clk 01:28:11]} {[%emt 00:00:22]} Nc6 {[%clk 01:22:08]}
{[%emt 00:01:41]} 3. Bb5 {[%clk 01:28:30]} {[%emt 00:00:10]} a6 {[%clk
01:20:46]} {[%emt 00:01:54]} 4. Ba4 {[%clk 01:28:53]} {[%emt 00:00:07]} Nge7
{[%clk 01:19:56]} {[%emt 00:01:20]} 5. O-O {[%clk 01:28:53]} {[%emt 00:00:29]}
g6 {[%clk 01:20:23]} {[%emt 00:00:04]} 6. c3 {[%clk 01:29:16]} {[%emt
00:00:06]} Bg7 {[%clk 01:20:06]} {[%emt 00:00:47]} 7. d4 {[%clk 01:29:38]}
{[%emt 00:00:08]} exd4 {[%clk 01:20:32]} {[%emt 00:00:05]} 8. cxd4 {[%clk
01:30:01]} {[%emt 00:00:07]} b5 {[%clk 01:20:55]} {[%emt 00:00:07]} 9. Bb3
{[%clk 01:30:23]} {[%emt 00:00:08]} O-O {[%clk 01:20:57]} {[%emt 00:00:28]} 10.
d5 {[%clk 01:30:43]} {[%emt 00:00:10]} Na5 {[%clk 01:21:20]} {[%emt 00:00:07]}
11. Bd2 {[%clk 01:31:03]} {[%emt 00:00:09]} c5 {[%clk 01:21:16]} {[%emt
00:00:35]} 12. Bc3 {[%clk 01:31:01]} {[%emt 00:00:31]} d6 {[%clk 01:20:42]}
{[%emt 00:01:04]} 13. Bxg7 {[%clk 01:27:38]} {[%emt 00:03:52]} Kxg7 {[%clk
01:21:11]} {[%emt 00:00:02]} 14. Bc2 {[%clk 01:27:55]} {[%emt 00:00:13]} Ng8
{[%clk 01:17:34]} {[%emt 00:04:07]} 15. Nbd2 {[%clk 01:23:01]} {[%emt
00:05:24]} Bg4 {[%clk 01:03:00]} {[%emt 00:15:04]} 16. h3 {[%clk 01:17:16]}
{[%emt 00:06:14]} Bxf3 {[%clk 01:02:19]} {[%emt 00:01:12]} 17. Nxf3 {[%clk
01:17:40]} {[%emt 00:00:06]} Re8 {[%clk 01:01:22]} {[%emt 00:01:28]} 18. b3
{[%clk 01:14:06]} {[%emt 00:04:04]} Nf6 {[%clk 00:54:06]} {[%emt 00:07:46]} 19.
Re1 {[%clk 01:13:55]} {[%emt 00:00:40]} Nd7 {[%clk 00:49:42]} {[%emt 00:04:55]}
20. Qd2 {[%clk 01:12:29]} {[%emt 00:01:56]} Rc8 {[%clk 00:49:36]} {[%emt
00:00:36]} 21. Nh2 {[%clk 01:11:01]} {[%emt 00:01:58]} Nb7 {[%clk 00:44:54]}
{[%emt 00:05:13]} 22. Ng4 {[%clk 01:04:47]} {[%emt 00:06:42]} Qh4 {[%clk
00:29:25]} {[%emt 00:16:00]} 23. a4 {[%clk 01:04:43]} {[%emt 00:00:34]} b4
{[%clk 00:29:24]} {[%emt 00:00:32]} 24. Bd3 {[%clk 01:05:03]} {[%emt 00:00:09]}
Ra8 {[%clk 00:29:14]} {[%emt 00:00:41]} 25. Qe2 {[%clk 00:40:30]} {[%emt
00:25:03]} c4 {[%clk 00:23:44]} {[%emt 00:06:00]} 26. Bxc4 {[%clk 00:37:28]}
{[%emt 00:03:32]} Nbc5 {[%clk 00:22:35]} {[%emt 00:01:39]} 27. f3 {[%clk
00:35:10]} {[%emt 00:02:48]} f5 {[%clk 00:21:25]} {[%emt 00:01:41]} 28. Qb2+
{[%clk 00:30:37]} {[%emt 00:05:03]} Kg8 {[%clk 00:21:05]} {[%emt 00:00:49]} 29.
Qf2 {[%clk 00:30:46]} {[%emt 00:00:21]} Qxf2+ {[%clk 00:12:01]} {[%emt
00:09:35]} 30. Nxf2 {[%clk 00:31:10]} {[%emt 00:00:05]} fxe4 {[%clk 00:07:01]}
{[%emt 00:05:31]} 31. Nxe4 {[%clk 00:31:27]} {[%emt 00:00:13]} Nxe4 {[%clk
00:07:19]} {[%emt 00:00:13]} 32. Rxe4 {[%clk 00:31:51]} {[%emt 00:00:05]} Rxe4
{[%clk 00:07:37]} {[%emt 00:00:13]} 33. fxe4 {[%clk 00:32:16]} {[%emt
00:00:04]} a5 {[%clk 00:07:51]} {[%emt 00:00:16]} 34. Bb5 {[%clk 00:26:24]}
{[%emt 00:06:22]} Nc5 {[%clk 00:06:04]} {[%emt 00:02:18]} 35. e5 {[%clk
00:23:34]} {[%emt 00:03:20]} dxe5 {[%clk 00:05:22]} {[%emt 00:01:12]} 36. d6
{[%clk 00:21:36]} {[%emt 00:02:27]} Rd8 {[%clk 00:05:12]} {[%emt 00:00:41]} 37.
Rc1 {[%clk 00:21:52]} {[%emt 00:00:14]} Ne4 {[%clk 00:04:39]} {[%emt 00:01:03]}
38. d7 {[%clk 00:14:51]} {[%emt 00:07:31]} Nc3 {[%clk 00:05:08]} {[%emt
00:00:02]} 39. Rc2 {[%clk 00:11:47]} {[%emt 00:03:34]} Kf7 {[%clk 00:04:25]}
{[%emt 00:01:13]} 40. Bc6 {[%clk 00:12:08]} {[%emt 00:00:09]} Ke7 {[%clk
00:03:03]} {[%emt 00:01:52]} 41. Rd2 {[%clk 00:12:26]} {[%emt 00:00:11]} Rf8
{[%clk 00:02:26]} {[%emt 00:01:07]} 42. Rf2 {[%clk 00:08:11]} {[%emt 00:04:45]}
Rd8 {[%clk 00:02:03]} {[%emt 00:00:53]} 43. Rd2 {[%clk 00:08:35]} {[%emt
00:00:06]} Rf8 {[%clk 00:02:32]} {[%emt 00:00:01]} 44. Rf2 {[%clk 00:08:59]}
{[%emt 00:00:06]} Rd8 {[%clk 00:02:59]} {[%emt 00:00:04]} 45. Rd2 {[%clk
00:09:26]} {[%emt 00:00:03]} Rf8 {[%clk 00:02:43]} {[%emt 00:00:45]} 46. Rf2
{[%clk 00:09:43]} {[%emt 00:00:13]} 1/2-1/2

[Event "CAMPEONATO NACIONAL ABSOLUTO DE CHILE 2019"]
[Site "Torre ENTEL, Chile"]
[Date "????.??.??"]
[Round "3.5"]
[White "Tapia Fuentes, Jaime"]
[Black "Abarca Gonzalez, Nicolas"]
[Result "0-1"]
[TimeControl "90 minutos mas 30 segundos incremento por movida"]
[WhiteTitle "FM"]
[WhiteFideId "3403025"]
[BlackFideId "3409422"]
[WhiteElo "2259"]
[BlackElo "2418"]

1. e4 {[%clk 01:30:58]} {[%emt 00:26:36]} c6 {[%clk 01:28:42]} {[%emt
00:02:27]} 2. d4 {[%clk 01:31:01]} {[%emt 00:00:26]} d5 {[%clk 01:29:08]}
{[%emt 00:00:04]} 3. exd5 {[%clk 01:30:53]} {[%emt 00:00:39]} cxd5 {[%clk
01:29:34]} {[%emt 00:00:04]} 4. Bd3 {[%clk 01:31:18]} {[%emt 00:00:05]} Nc6
{[%clk 01:29:29]} {[%emt 00:00:35]} 5. c3 {[%clk 01:31:18]} {[%emt 00:00:30]}
Nf6 {[%clk 01:29:26]} {[%emt 00:00:34]} 6. h3 {[%emt 00:03:13]} g6 {[%clk
01:29:30]} {[%emt 00:00:25]} 7. Nf3 {[%clk 01:27:44]} {[%emt 00:01:23]} Bf5
{[%clk 01:29:11]} {[%emt 00:00:48]} 8. O-O {[%clk 01:23:45]} {[%emt 00:04:28]}
Bg7 {[%clk 01:28:03]} {[%emt 00:01:38]} 9. Bxf5 {[%clk 01:18:45]} {[%emt
00:05:29]} gxf5 {[%clk 01:28:12]} {[%emt 00:00:21]} 10. Bf4 {[%clk 01:19:07]}
{[%emt 00:00:08]} O-O {[%clk 01:27:53]} {[%emt 00:00:48]} 11. Nbd2 {[%clk
01:19:13]} {[%emt 00:00:24]} Ne4 {[%clk 01:24:20]} {[%emt 00:04:03]} 12. Ne1
{[%clk 01:08:01]} {[%emt 00:11:41]} b5 {[%clk 00:55:35]} {[%emt 00:29:16]} 13.
Nb3 {[%clk 01:00:21]} {[%emt 00:08:09]} a5 {[%clk 00:45:20]} {[%emt 00:10:46]}
14. f3 {[%clk 00:59:02]} {[%emt 00:01:49]} Nd6 {[%clk 00:45:25]} {[%emt
00:00:26]} 15. Bxd6 {[%clk 00:57:53]} {[%emt 00:01:39]} Qxd6 {[%clk 00:45:29]}
{[%emt 00:00:26]} 16. Qd3 {[%clk 00:57:32]} {[%emt 00:00:50]} a4 {[%emt
00:06:30]} 17. Nc5 {[%clk 00:42:27]} {[%emt 00:09:29]} e5 {[%clk 00:27:20]}
{[%emt 00:18:44]} 18. Nc2 {[%clk 00:40:01]} {[%emt 00:02:56]} e4 {[%clk
00:27:31]} {[%emt 00:00:19]} 19. Qd2 {[%clk 00:37:05]} {[%emt 00:03:25]} Ne7
{[%clk 00:17:54]} {[%emt 00:10:10]} 20. Nb4 {[%clk 00:30:29]} {[%emt 00:07:06]}
a3 {[%clk 00:15:23]} {[%emt 00:03:01]} 21. b3 {[%clk 00:29:46]} {[%emt
00:01:13]} Kh8 {[%clk 00:15:50]} {[%emt 00:00:02]} 22. Nc2 {[%clk 00:28:17]}
{[%emt 00:01:58]} Bh6 {[%clk 00:15:07]} {[%emt 00:01:14]} 23. f4 {[%clk
00:18:24]} {[%emt 00:10:24]} Rg8 {[%clk 00:14:54]} {[%emt 00:00:42]} 24. Rf2
{[%clk 00:13:52]} {[%emt 00:05:02]} Rg3 {[%clk 00:14:47]} {[%emt 00:00:37]} 25.
Raf1 {[%clk 00:13:25]} {[%emt 00:00:56]} Rag8 {[%clk 00:13:53]} {[%emt
00:01:25]} 26. Kh1 {[%clk 00:08:59]} {[%emt 00:04:56]} Ng6 {[%clk 00:13:59]}
{[%emt 00:00:24]} 27. Ne3 {[%clk 00:07:56]} {[%emt 00:01:33]} Nh4 {[%clk
00:14:21]} {[%emt 00:00:08]} 28. c4 {[%clk 00:07:38]} {[%emt 00:00:49]} bxc4
{[%clk 00:11:08]} {[%emt 00:03:43]} 29. bxc4 {[%clk 00:08:06]} {[%emt
00:00:01]} dxc4 {[%clk 00:11:35]} {[%emt 00:00:03]} 30. Nxc4 {[%clk 00:03:17]}
{[%emt 00:05:19]} Qg6 {[%clk 00:11:34]} {[%emt 00:00:31]} 31. Ne3 {[%clk
00:02:01]} {[%emt 00:01:46]} Qh5 {[%clk 00:10:14]} {[%emt 00:01:49]} 32. Qe2
{[%clk 00:01:07]} {[%emt 00:01:25]} Nf3 {[%clk 00:09:47]} {[%emt 00:00:57]} 33.
gxf3 {[%clk 00:00:37]} {[%emt 00:01:01]} Bxf4 {[%clk 00:09:52]} {[%emt
00:00:24]} 34. Rh2 {[%clk 00:00:31]} {[%emt 00:00:36]} Rxh3 {[%clk 00:09:44]}
{[%emt 00:00:39]} 35. Rff2 {[%clk 00:00:44]} {[%emt 00:00:17]} Bxh2 {[%clk
00:10:12]} {[%emt 00:00:02]} 36. Rxh2 {[%clk 00:01:01]} {[%emt 00:00:13]} Rxh2+
{[%clk 00:10:41]} {[%emt 00:00:01]} 37. Qxh2 {[%clk 00:01:25]} {[%emt
00:00:06]} Qxf3+ {[%clk 00:11:09]} {[%emt 00:00:02]} 38. Ng2 {[%clk 00:01:45]}
{[%emt 00:00:09]} Rg3 {[%clk 00:11:38]} {[%emt 00:00:02]} 39. Kg1 {[%clk
00:01:09]} {[%emt 00:01:06]} Qd1+ {[%clk 00:12:05]} {[%emt 00:00:02]} 0-1

[Event "CAMPEONATO NACIONAL ABSOLUTO DE CHILE 2019"]
[Site "Torre ENTEL, Chile"]
[Date "2019.02.22"]
[Round "4.2"]
[White "Abarca Gonzalez, Nicolas"]
[Black "Aguirre Contreras, Cristian"]
[Result "1/2-1/2"]
[TimeControl "90 minutos mas 30 segundos incremento por movida"]
[BlackTitle "FM"]
[WhiteFideId "3409422"]
[BlackFideId "3412776"]
[WhiteElo "2418"]
[BlackElo "2252"]

1. e4 {[%clk 01:27:24]} {[%emt 00:03:35]} c5 {[%clk 01:30:46]} {[%emt
00:00:14]} 2. Nf3 {[%clk 01:27:51]} {[%emt 00:00:03]} Nc6 {[%emt 00:00:06]} 3.
d4 {[%clk 01:28:19]} cxd4 {[%clk 01:31:33]} {[%emt 00:00:08]} 4. Nxd4 {[%clk
01:28:47]} {[%emt 00:00:01]} Nf6 {[%clk 01:31:48]} {[%emt 00:00:16]} 5. Nc3
{[%clk 01:29:15]} {[%emt 00:00:02]} e5 {[%clk 01:32:07]} {[%emt 00:00:10]} 6.
Ndb5 {[%emt 00:00:08]} d6 {[%clk 01:32:19]} {[%emt 00:00:12]} 7. Bg5 {[%clk
01:30:05]} {[%emt 00:00:08]} a6 {[%clk 01:32:28]} {[%emt 00:00:22]} 8. Na3
{[%clk 01:30:33]} {[%emt 00:00:02]} b5 {[%clk 01:31:58]} {[%emt 00:01:00]} 9.
Nd5 {[%clk 01:30:51]} {[%emt 00:00:11]} Be7 {[%clk 01:32:12]} {[%emt 00:00:16]}
10. Bxf6 {[%clk 01:31:16]} {[%emt 00:00:05]} Bxf6 {[%clk 01:32:34]} {[%emt
00:00:08]} 11. c4 {[%clk 01:31:45]} {[%emt 00:00:02]} b4 {[%clk 01:28:57]}
{[%emt 00:04:07]} 12. Nc2 {[%clk 01:32:10]} {[%emt 00:00:04]} a5 {[%clk
01:28:37]} {[%emt 00:00:50]} 13. Qf3 {[%clk 01:32:34]} {[%emt 00:00:06]} Bg5
{[%clk 01:16:40]} {[%emt 00:12:27]} 14. h4 {[%clk 01:32:52]} {[%emt 00:00:13]}
Bh6 {[%clk 01:16:38]} {[%emt 00:00:32]} 15. g4 {[%clk 01:33:15]} {[%emt
00:00:07]} g6 {[%clk 01:16:59]} {[%emt 00:00:09]} 16. Nf6+ {[%clk 01:23:36]}
{[%emt 00:10:10]} Kf8 {[%clk 01:17:07]} {[%emt 00:00:21]} 17. Rd1 {[%clk
01:23:46]} {[%emt 00:00:20]} Bg7 {[%clk 01:06:16]} {[%emt 00:11:21]} 18. g5
{[%clk 01:22:27]} {[%emt 00:01:49]} Qc7 {[%clk 01:05:24]} {[%emt 00:01:22]} 19.
h5 {[%clk 01:08:09]} {[%emt 00:14:48]} h6 {[%clk 00:49:45]} {[%emt 00:16:09]}
20. hxg6 {[%clk 01:01:13]} {[%emt 00:07:26]} hxg5 {[%clk 00:46:31]} {[%emt
00:03:44]} 21. Nh7+ {[%clk 00:29:50]} {[%emt 00:31:54]} Ke8 {[%clk 00:43:43]}
{[%emt 00:03:18]} 22. c5 {[%clk 00:22:24]} {[%emt 00:07:56]} dxc5 {[%clk
00:28:53]} {[%emt 00:15:19]} 23. Qf6 {[%clk 00:08:23]} {[%emt 00:14:31]} Rxh7
{[%clk 00:25:43]} {[%emt 00:03:40]} 24. Qxf7+ {[%clk 00:08:50]} {[%emt
00:00:03]} Qxf7 {[%clk 00:25:52]} {[%emt 00:00:23]} 25. gxf7+ {[%clk 00:09:19]}
Kxf7 {[%clk 00:25:49]} {[%emt 00:00:32]} 26. Rxh7 {[%clk 00:09:48]} {[%emt
00:00:01]} Kg6 {[%clk 00:20:42]} {[%emt 00:05:36]} 27. Rh1 {[%clk 00:09:32]}
{[%emt 00:00:46]} Nd4 {[%clk 00:21:07]} {[%emt 00:00:06]} 28. Nxd4 {[%clk
00:09:28]} {[%emt 00:00:34]} exd4 {[%clk 00:21:27]} {[%emt 00:00:10]} 29. Rc1
{[%clk 00:08:51]} {[%emt 00:01:07]} Bf8 {[%clk 00:21:16]} {[%emt 00:00:40]} 30.
Bc4 {[%clk 00:08:30]} {[%emt 00:00:51]} Bg4 {[%clk 00:20:25]} {[%emt 00:01:21]}
31. Rh8 {[%clk 00:08:12]} {[%emt 00:00:48]} Rc8 {[%clk 00:16:41]} {[%emt
00:04:14]} 32. Kd2 {[%clk 00:08:25]} {[%emt 00:00:17]} Bh6 {[%clk 00:15:47]}
{[%emt 00:01:23]} 33. Rxc8 {[%clk 00:07:35]} {[%emt 00:01:22]} Bxc8 {[%clk
00:16:15]} {[%emt 00:00:01]} 34. Re1 {[%clk 00:06:40]} {[%emt 00:01:24]} g4+
{[%clk 00:14:39]} {[%emt 00:02:07]} 35. Kc2 {[%clk 00:07:09]} {[%emt 00:00:01]}
Bg5 {[%clk 00:14:18]} {[%emt 00:00:50]} 36. a3 {[%clk 00:05:59]} {[%emt
00:01:41]} Bh4 {[%clk 00:14:10]} {[%emt 00:00:37]} 37. Re2 {[%clk 00:06:28]}
{[%emt 00:00:01]} Kg5 {[%clk 00:13:50]} {[%emt 00:00:50]} 38. e5 {[%clk
00:06:25]} {[%emt 00:00:33]} Bf5+ {[%clk 00:14:00]} {[%emt 00:00:21]} 39. Kb3
{[%clk 00:06:06]} {[%emt 00:00:49]} Kf4 {[%clk 00:10:01]} {[%emt 00:04:29]} 40.
e6 {[%clk 00:06:09]} {[%emt 00:00:27]} Be7 {[%clk 00:10:04]} {[%emt 00:00:27]}
41. Ka4 {[%clk 00:05:54]} {[%emt 00:00:45]} d3 {[%clk 00:07:08]} {[%emt
00:03:25]} 42. Rd2 {[%clk 00:05:49]} {[%emt 00:00:35]} Bg5 {[%clk 00:06:06]}
{[%emt 00:01:33]} 43. Kxa5 {[%clk 00:03:17]} {[%emt 00:03:03]} g3 {[%clk
00:03:47]} {[%emt 00:02:49]} 44. fxg3+ {[%clk 00:03:34]} {[%emt 00:00:13]} Ke3
{[%clk 00:03:41]} {[%emt 00:00:36]} 45. Rh2 {[%clk 00:02:27]} {[%emt 00:01:37]}
d2 {[%clk 00:03:05]} {[%emt 00:01:06]} 46. Be2 {[%clk 00:00:51]} {[%emt
00:02:06]} bxa3 {[%clk 00:03:02]} {[%emt 00:00:33]} 47. bxa3 {[%clk 00:01:17]}
{[%emt 00:00:06]} Bxe6 {[%clk 00:03:22]} {[%emt 00:00:09]} 48. Bd1 {[%clk
00:01:19]} {[%emt 00:00:28]} Kd3 {[%clk 00:02:52]} {[%emt 00:01:00]} 49. Rh5
{[%clk 00:00:59]} {[%emt 00:00:50]} Be3 {[%clk 00:02:56]} {[%emt 00:00:26]} 50.
Re5 {[%clk 00:01:15]} {[%emt 00:00:15]} Ba2 {[%clk 00:02:16]} {[%emt 00:01:10]}
51. Kb5 {[%clk 00:01:02]} {[%emt 00:00:43]} c4 {[%clk 00:01:00]} {[%emt
00:01:45]} 52. Kb4 {[%clk 00:01:16]} {[%emt 00:00:16]} Bb3 {[%clk 00:00:40]}
{[%emt 00:00:50]} 53. Bf3 {[%clk 00:00:49]} {[%emt 00:00:57]} d1=Q {[%clk
00:00:42]} {[%emt 00:00:28]} 54. Bxd1 {[%clk 00:01:07]} {[%emt 00:00:11]} Bxd1
{[%clk 00:01:09]} {[%emt 00:00:03]} 55. Rxe3+ {[%emt 00:00:04]} Kxe3 {[%clk
00:01:28]} {[%emt 00:00:10]} 1/2-1/2